[Event "Titled Tuesday Blitz May 16 Early 2023"]
[White "Chakravarthi Reddy, M"]
[Black "Pandey Srishti"]
[WhiteFideId "25009532"]
[BlackFideId "35093290"]
[WhiteElo "2201"]
[BlackElo "2123"]
[Result "1-0"]
[Round "05"]
[TimeControl "180+2"]
[Date "2023.05.16"]
[WhiteClock "0:00:07"]
[BlackClock "0:00:12"]

1. e4 {[%clk 0:03:00]}  e5 {[%clk 0:03:00]} 2. Nf3 {[%clk 0:03:00]}  Nc6 {[%clk 0:02:56]} 3. Bb5 {[%clk 0:03:00]}  a6 {[%clk 0:02:55]} 4. Ba4 {[%clk 0:03:01]}  Nf6 {[%clk 0:02:53]} 5. O-O {[%clk 0:03:00]}  Be7 {[%clk 0:02:53]} 6. Re1 {[%clk 0:02:58]}  b5 {[%clk 0:02:51]} 7. Bb3 {[%clk 0:02:58]}  d6 {[%clk 0:02:46]} 8. a4 {[%clk 0:02:56]}  Rb8 {[%clk 0:02:29]} 9. h3 {[%clk 0:02:45]}  O-O {[%clk 0:02:28]} 10. d4 {[%clk 0:02:31]}  Nxd4 {[%clk 0:02:20]} 11. Nxd4 {[%clk 0:02:31]}  exd4 {[%clk 0:02:21]} 12. Qxd4 {[%clk 0:02:32]}  c5 {[%clk 0:02:20]} 13. Qd1 {[%clk 0:02:16]}  c4 {[%clk 0:02:18]} 14. Ba2 {[%clk 0:02:16]}  Be6 {[%clk 0:02:17]} 15. c3 {[%clk 0:02:14]}  Qc8 {[%clk 0:02:17]} 16. Nd2 {[%clk 0:02:11]}  Rd8 {[%clk 0:02:13]} 17. axb5 {[%clk 0:02:06]}  axb5 {[%clk 0:02:13]} 18. Bb1 {[%clk 0:02:07]}  Nd7 {[%clk 0:02:10]} 19. Nf3 {[%clk 0:02:04]}  Ne5 {[%clk 0:02:06]} 20. Nd4 {[%clk 0:02:04]}  Bxh3 {[%clk 0:01:44]} 21. gxh3 {[%clk 0:01:55]}  Qxh3 {[%clk 0:01:44]} 22. Re3 {[%clk 0:01:56]}  Qh4 {[%clk 0:01:32]} 23. Nf5 {[%clk 0:01:46]}  Qf6 {[%clk 0:01:30]} 24. Rg3 {[%clk 0:01:36]}  Ng6 {[%clk 0:01:30]} 25. Ra7 {[%clk 0:01:06]}  Qe6 {[%clk 0:01:25]} 26. Qh5 {[%clk 0:00:52]}  Bf8 {[%clk 0:01:20]} 27. Rh3 {[%clk 0:00:52]}  h6 {[%clk 0:01:19]} 28. Nd4 {[%clk 0:00:20]}  Qf6 {[%clk 0:01:05]} 29. Nc6 {[%clk 0:00:19]}  Ra8 {[%clk 0:00:58]} 30. Rxa8 {[%clk 0:00:13]}  Rxa8 {[%clk 0:00:59]} 31. Qd1 {[%clk 0:00:12]}  Qe6 {[%clk 0:00:35]} 32. Rg3 {[%clk 0:00:11]}  Qd7 {[%clk 0:00:24]} 33. Nd4 {[%clk 0:00:10]}  Ne5 {[%clk 0:00:22]} 34. f4 {[%clk 0:00:10]}  Ng6 {[%clk 0:00:19]} 35. Nf5 {[%clk 0:00:09]}  Re8 {[%clk 0:00:18]} 36. e5 {[%clk 0:00:09]}  Qa7+ {[%clk 0:00:16]} 37. Be3 {[%clk 0:00:08]}  Qa1 {[%clk 0:00:13]} 38. exd6 {[%clk 0:00:07]}  Qxb2 {[%clk 0:00:13]} 39. d7 {[%clk 0:00:07]}  Rd8 {[%clk 0:00:13]} 40. Nxh6+ {[%clk 0:00:06]}  gxh6 {[%clk 0:00:12]} 41. Bxg6 {[%clk 0:00:06]}  fxg6 {[%clk 0:00:13]} 42. Qd5+ {[%clk 0:00:06]}  Kh7 {[%clk 0:00:11]} 43. Qf7+ {[%clk 0:00:06]}  Bg7 {[%clk 0:00:12]} 44. Qxg6+ {[%clk 0:00:06]}  Kh8 {[%clk 0:00:12]} 45. Qxg7# {[%clk 0:00:07]} 1-0


[Site "https://www.chess.com"]

[Event "Titled Tuesday Blitz May 16 Early 2023"]
[White "Wimalasuriya, Kasun M."]
[Black "Pesotskiy, Mikhail"]
[WhiteFideId "9906789"]
[BlackFideId "34164453"]
[WhiteElo "2235"]
[BlackElo "2131"]
[Result "1-0"]
[Round "05"]
[TimeControl "180+2"]
[Date "2023.05.16"]
[WhiteClock "0:01:48"]
[BlackClock "0:00:18"]

1. d4 {[%clk 0:02:56]}  e6 {[%clk 0:03:00]} 2. c4 {[%clk 0:02:56]}  Nf6 {[%clk 0:02:58]} 3. Nf3 {[%clk 0:02:56]}  Bb4+ {[%clk 0:02:59]} 4. Nbd2 {[%clk 0:02:55]}  a5 {[%clk 0:03:00]} 5. Qc2 {[%clk 0:02:54]}  d5 {[%clk 0:02:38]} 6. a3 {[%clk 0:02:50]}  Bxd2+ {[%clk 0:02:38]} 7. Bxd2 {[%clk 0:02:49]}  O-O {[%clk 0:02:39]} 8. e3 {[%clk 0:02:48]}  b6 {[%clk 0:02:37]} 9. cxd5 {[%clk 0:02:46]}  exd5 {[%clk 0:02:38]} 10. Bd3 {[%clk 0:02:46]}  Bb7 {[%clk 0:02:33]} 11. Rc1 {[%clk 0:02:42]}  Nbd7 {[%clk 0:02:33]} 12. Qxc7 {[%clk 0:02:41]}  Qb8 {[%clk 0:02:23]} 13. Qxb8 {[%clk 0:02:36]}  Raxb8 {[%clk 0:02:23]} 14. Ke2 {[%clk 0:02:34]}  Rfc8 {[%clk 0:02:22]} 15. Rxc8+ {[%clk 0:02:33]}  Rxc8 {[%clk 0:02:23]} 16. Rc1 {[%clk 0:02:33]}  Rxc1 {[%clk 0:02:22]} 17. Bxc1 {[%clk 0:02:33]}  Kf8 {[%clk 0:02:15]} 18. Ne5 {[%clk 0:02:32]}  Ke7 {[%clk 0:02:12]} 19. h3 {[%clk 0:02:31]}  h6 {[%clk 0:02:06]} 20. Bd2 {[%clk 0:02:30]}  Nxe5 {[%clk 0:02:05]} 21. dxe5 {[%clk 0:02:30]}  Ne4 {[%clk 0:02:04]} 22. f4 {[%clk 0:02:29]}  f6 {[%clk 0:01:59]} 23. exf6+ {[%clk 0:02:28]}  Kxf6 {[%clk 0:01:58]} 24. Bc3+ {[%clk 0:02:24]}  Nxc3+ {[%clk 0:01:58]} 25. bxc3 {[%clk 0:02:25]}  h5 {[%clk 0:01:49]} 26. g4 {[%clk 0:02:24]}  hxg4 {[%clk 0:01:49]} 27. hxg4 {[%clk 0:02:24]}  Ke7 {[%clk 0:01:41]} 28. c4 {[%clk 0:02:23]}  dxc4 {[%clk 0:01:37]} 29. Bxc4 {[%clk 0:02:23]}  Bc6 {[%clk 0:01:38]} 30. Kd3 {[%clk 0:02:22]}  b5 {[%clk 0:01:32]} 31. Bb3 {[%clk 0:02:20]}  Kd6 {[%clk 0:01:30]} 32. Kd4 {[%clk 0:02:21]}  Bd7 {[%clk 0:00:47]} 33. Bd1 {[%clk 0:02:07]}  Be6 {[%clk 0:00:38]} 34. e4 {[%clk 0:02:04]}  b4 {[%clk 0:00:25]} 35. axb4 {[%clk 0:02:03]}  axb4 {[%clk 0:00:26]} 36. f5 {[%clk 0:02:03]}  Ba2 {[%clk 0:00:26]} 37. e5+ {[%clk 0:02:02]}  Ke7 {[%clk 0:00:26]} 38. g5 {[%clk 0:01:59]}  Kf8 {[%clk 0:00:20]} 39. Be2 {[%clk 0:01:50]}  Bb1 {[%clk 0:00:18]} 40. Bd3 {[%clk 0:01:50]}  Bxd3 {[%clk 0:00:16]} 41. Kxd3 {[%clk 0:01:50]}  g6 {[%clk 0:00:17]} 42. f6 {[%clk 0:01:49]}  Kf7 {[%clk 0:00:17]} 43. Kc4 {[%clk 0:01:48]}  b3 {[%clk 0:00:18]} 44. Kxb3 {[%clk 0:01:48]}  Ke6 {[%clk 0:00:18]} 45. Kc4 {[%clk 0:01:48]} 1-0


[Site "https://www.chess.com"]

[Event "Titled Tuesday Blitz May 16 Early 2023"]
[White "Da Matta, Eduardo Cesar"]
[Black "Koepke, Christian"]
[WhiteFideId "2193108"]
[BlackFideId "4655737"]
[WhiteElo "1981"]
[BlackElo "2204"]
[Result "0-1"]
[Round "05"]
[TimeControl "180+2"]
[Date "2023.05.16"]
[WhiteClock "0:00:15"]
[BlackClock "0:00:28"]

1. d4 {[%clk 0:03:00]}  d5 {[%clk 0:02:59]} 2. c4 {[%clk 0:03:01]}  e5 {[%clk 0:02:59]} 3. dxe5 {[%clk 0:03:00]}  Ne7 {[%clk 0:02:59]} 4. Nf3 {[%clk 0:02:55]}  Nbc6 {[%clk 0:02:59]} 5. cxd5 {[%clk 0:02:53]}  Qxd5 {[%clk 0:03:00]} 6. Qxd5 {[%clk 0:02:52]}  Nxd5 {[%clk 0:03:01]} 7. e4 {[%clk 0:02:46]}  Ndb4 {[%clk 0:02:57]} 8. Na3 {[%clk 0:02:41]}  Be6 {[%clk 0:02:56]} 9. b3 {[%clk 0:02:38]}  O-O-O {[%clk 0:02:40]} 10. Be2 {[%clk 0:02:27]}  Nd3+ {[%clk 0:02:00]} 11. Bxd3 {[%clk 0:02:24]}  Rxd3 {[%clk 0:02:01]} 12. O-O {[%clk 0:02:21]}  Bg4 {[%clk 0:01:35]} 13. Ne1 {[%clk 0:02:07]}  Rd1 {[%clk 0:01:28]} 14. f3 {[%clk 0:02:00]}  Bc5+ {[%clk 0:01:26]} 15. Kh1 {[%clk 0:01:55]}  Bxa3 {[%clk 0:01:14]} 16. Bxa3 {[%clk 0:01:50]}  Rxa1 {[%clk 0:01:14]} 17. fxg4 {[%clk 0:01:49]}  Nxe5 {[%clk 0:01:14]} 18. Bb2 {[%clk 0:01:42]}  Rb1 {[%clk 0:01:10]} 19. Bxe5 {[%clk 0:01:42]}  Re8 {[%clk 0:01:10]} 20. Bc3 {[%clk 0:01:34]}  Rxe4 {[%clk 0:01:07]} 21. h3 {[%clk 0:01:34]}  Re3 {[%clk 0:00:59]} 22. Bd2 {[%clk 0:01:19]}  Re2 {[%clk 0:00:59]} 23. Bc3 {[%clk 0:01:08]}  Rc1 {[%clk 0:00:59]} 24. Rxf7 {[%clk 0:00:57]}  Rxc3 {[%clk 0:00:58]} 25. Nf3 {[%clk 0:00:56]}  Rxa2 {[%clk 0:00:51]} 26. Ne5 {[%clk 0:00:53]}  b5 {[%clk 0:00:40]} 27. Rxg7 {[%clk 0:00:45]}  Rcc2 {[%clk 0:00:40]} 28. Rxh7 {[%clk 0:00:38]}  Rxg2 {[%clk 0:00:40]} 29. h4 {[%clk 0:00:27]}  Rh2+ {[%clk 0:00:38]} 30. Kg1 {[%clk 0:00:26]}  Rag2+ {[%clk 0:00:38]} 31. Kf1 {[%clk 0:00:27]}  Re2 {[%clk 0:00:31]} 32. Nd3 {[%clk 0:00:19]}  Rd2 {[%clk 0:00:29]} 33. Ne1 {[%clk 0:00:15]}  Rh1# {[%clk 0:00:28]} 0-1


[Site "https://www.chess.com"]

[Event "Titled Tuesday Blitz May 16 Early 2023"]
[White "Rottenwohrer Suarez, Juan"]
[Black "Kiseljova, Marya"]
[WhiteFideId "32068182"]
[BlackFideId "4155009"]
[WhiteElo "2174"]
[BlackElo "1831"]
[Result "1-0"]
[Round "05"]
[TimeControl "180+2"]
[Date "2023.05.16"]
[WhiteClock "0:01:24"]
[BlackClock "0:01:05"]

1. Nf3 {[%clk 0:03:00]}  d5 {[%clk 0:02:59]} 2. g3 {[%clk 0:03:01]}  Nd7 {[%clk 0:02:59]} 3. d4 {[%clk 0:03:01]}  Nb6 {[%clk 0:02:58]} 4. Bg2 {[%clk 0:03:01]}  Nf6 {[%clk 0:02:57]} 5. O-O {[%clk 0:03:01]}  Bf5 {[%clk 0:02:57]} 6. a4 {[%clk 0:03:01]}  a5 {[%clk 0:02:55]} 7. Nc3 {[%clk 0:02:47]}  e6 {[%clk 0:02:55]} 8. Nh4 {[%clk 0:02:44]}  Bg6 {[%clk 0:02:53]} 9. Nxg6 {[%clk 0:02:37]}  hxg6 {[%clk 0:02:54]} 10. e4 {[%clk 0:02:38]}  dxe4 {[%clk 0:02:46]} 11. Nxe4 {[%clk 0:02:38]}  Nxe4 {[%clk 0:02:40]} 12. Bxe4 {[%clk 0:02:38]}  c6 {[%clk 0:02:40]} 13. c3 {[%clk 0:02:17]}  Bd6 {[%clk 0:02:23]} 14. Qb3 {[%clk 0:02:13]}  Bc7 {[%clk 0:02:18]} 15. Be3 {[%clk 0:02:08]}  Qf6 {[%clk 0:01:57]} 16. c4 {[%clk 0:02:02]}  Rb8 {[%clk 0:01:32]} 17. Rfe1 {[%clk 0:01:52]}  g5 {[%clk 0:01:31]} 18. Bg2 {[%clk 0:01:45]}  g4 {[%clk 0:01:27]} 19. d5 {[%clk 0:01:39]}  cxd5 {[%clk 0:01:18]} 20. Bxb6 {[%clk 0:01:35]}  Bxb6 {[%clk 0:01:11]} 21. Qb5+ {[%clk 0:01:30]}  Kf8 {[%clk 0:01:09]} 22. Qxb6 {[%clk 0:01:31]}  Qh6 {[%clk 0:01:09]} 23. Qd6+ {[%clk 0:01:27]}  Kg8 {[%clk 0:01:08]} 24. Qxb8+ {[%clk 0:01:24]}  Kh7 {[%clk 0:01:09]} 25. Qf4 {[%clk 0:01:25]}  Kg8 {[%clk 0:01:07]} 26. Qxh6 {[%clk 0:01:24]}  Rxh6 {[%clk 0:01:05]} 27. cxd5 {[%clk 0:01:24]} 1-0


[Site "https://www.chess.com"]

[Event "Titled Tuesday Blitz May 16 Early 2023"]
[White "Tarnowska, Aleksandra"]
[Black "Yosha_Iglesias"]
[WhiteFideId "1180967"]
[WhiteElo "1776"]
[BlackElo "2405"]
[Result "0-1"]
[Round "05"]
[TimeControl "180+2"]
[Date "2023.05.16"]
[WhiteClock "0:00:00"]
[BlackClock "0:00:10"]

1. e4 {[%clk 0:03:00]}  c5 {[%clk 0:03:00]} 2. Nf3 {[%clk 0:03:00]}  d6 {[%clk 0:02:59]} 3. Bb5+ {[%clk 0:02:57]}  Bd7 {[%clk 0:02:59]} 4. Bxd7+ {[%clk 0:02:57]}  Qxd7 {[%clk 0:03:00]} 5. O-O {[%clk 0:02:57]}  Nc6 {[%clk 0:02:59]} 6. d3 {[%clk 0:02:42]}  g6 {[%clk 0:02:56]} 7. c3 {[%clk 0:02:31]}  Bg7 {[%clk 0:02:56]} 8. Re1 {[%clk 0:02:29]}  Nf6 {[%clk 0:02:49]} 9. Nbd2 {[%clk 0:02:29]}  O-O {[%clk 0:02:49]} 10. Nf1 {[%clk 0:02:26]}  d5 {[%clk 0:02:11]} 11. e5 {[%clk 0:01:38]}  Ne8 {[%clk 0:02:11]} 12. d4 {[%clk 0:01:23]}  cxd4 {[%clk 0:02:10]} 13. cxd4 {[%clk 0:01:24]}  Nc7 {[%clk 0:02:10]} 14. Be3 {[%clk 0:01:03]}  Ne6 {[%clk 0:02:07]} 15. Qd2 {[%clk 0:00:59]}  Rac8 {[%clk 0:01:48]} 16. Rad1 {[%clk 0:00:56]}  Qc7 {[%clk 0:01:40]} 17. Bh6 {[%clk 0:00:44]}  Qa5 {[%clk 0:01:31]} 18. Qe3 {[%clk 0:00:22]}  Qb6 {[%clk 0:01:24]} 19. b3 {[%clk 0:00:14]}  Bxh6 {[%clk 0:00:39]} 20. Qxh6 {[%clk 0:00:15]}  Ncxd4 {[%clk 0:00:40]} 21. Nxd4 {[%clk 0:00:12]}  Nxd4 {[%clk 0:00:39]} 22. Ne3 {[%clk 0:00:09]}  Nf5 {[%clk 0:00:26]} 23. Nxf5 {[%clk 0:00:06]}  gxf5 {[%clk 0:00:26]} 24. Qf4 {[%clk 0:00:03]}  Qe6 {[%clk 0:00:22]} 25. Rd3 {[%clk 0:00:02]}  Kh8 {[%clk 0:00:23]} 26. Rh3 {[%clk 0:00:02]}  Rg8 {[%clk 0:00:23]} 27. Rh6 {[%clk 0:00:02]}  Rg6 {[%clk 0:00:21]} 28. Rxg6 {[%clk 0:00:01]}  fxg6 {[%clk 0:00:19]} 29. Rd1 {[%clk 0:00:01]}  Kg7 {[%clk 0:00:16]} 30. Qd4 {[%clk 0:00:02]}  Qc6 {[%clk 0:00:15]} 31. h3 {[%clk 0:00:02]}  e6 {[%clk 0:00:15]} 32. Qxa7 {[%clk 0:00:03]}  Rc7 {[%clk 0:00:13]} 33. Qa8 {[%clk 0:00:02]}  Qc2 {[%clk 0:00:12]} 34. Re1 {[%clk 0:00:02]}  Qd2 {[%clk 0:00:12]} 35. Rf1 {[%clk 0:00:02]}  Rc1 {[%clk 0:00:11]} 36. Qd8 {[%clk 0:00:00]}  Rxf1+ {[%clk 0:00:10]} 0-1


[Site "https://www.chess.com"]

[Event "Titled Tuesday Blitz May 16 Early 2023"]
[White "Winkels, Marcel"]
[Black "KVAIDAN"]
[WhiteFideId "1003887"]
[WhiteElo "1900"]
[BlackElo "2396"]
[Result "1-0"]
[Round "05"]
[TimeControl "180+2"]
[Date "2023.05.16"]
[WhiteClock "0:00:52"]
[BlackClock "0:00:27"]

1. d4 {[%clk 0:03:00]}  e6 {[%clk 0:02:59]} 2. e4 {[%clk 0:02:59]}  d5 {[%clk 0:02:58]} 3. e5 {[%clk 0:02:57]}  c5 {[%clk 0:02:58]} 4. c3 {[%clk 0:02:58]}  Qb6 {[%clk 0:02:57]} 5. Nf3 {[%clk 0:02:57]}  Bd7 {[%clk 0:02:57]} 6. Be2 {[%clk 0:02:41]}  cxd4 {[%clk 0:02:54]} 7. cxd4 {[%clk 0:02:35]}  Bb5 {[%clk 0:02:54]} 8. O-O {[%clk 0:02:33]}  Bxe2 {[%clk 0:02:52]} 9. Qxe2 {[%clk 0:02:34]}  Nc6 {[%clk 0:02:52]} 10. Be3 {[%clk 0:02:27]}  Nge7 {[%clk 0:02:51]} 11. Nc3 {[%clk 0:02:24]}  Nf5 {[%clk 0:02:48]} 12. Rfd1 {[%clk 0:02:18]}  Bb4 {[%clk 0:02:45]} 13. Rac1 {[%clk 0:02:16]}  h5 {[%clk 0:02:37]} 14. a3 {[%clk 0:02:14]}  Bxc3 {[%clk 0:02:34]} 15. Rxc3 {[%clk 0:02:13]}  g6 {[%clk 0:02:28]} 16. h3 {[%clk 0:02:05]}  a5 {[%clk 0:02:23]} 17. Qd3 {[%clk 0:01:44]}  a4 {[%clk 0:02:13]} 18. g4 {[%clk 0:01:39]}  hxg4 {[%clk 0:02:13]} 19. hxg4 {[%clk 0:01:39]}  Nh4 {[%clk 0:02:13]} 20. Nxh4 {[%clk 0:01:37]}  Rxh4 {[%clk 0:02:11]} 21. Qe2 {[%clk 0:01:35]}  Kd7 {[%clk 0:02:10]} 22. Bg5 {[%clk 0:01:25]}  Rh7 {[%clk 0:02:08]} 23. Bf6 {[%clk 0:01:14]}  Nxd4 {[%clk 0:02:05]} 24. Qe3 {[%clk 0:01:12]}  Qxb2 {[%clk 0:01:49]} 25. Qxd4 {[%clk 0:01:07]}  Qe2 {[%clk 0:01:43]} 26. Rdc1 {[%clk 0:00:58]}  Ke8 {[%clk 0:00:27]} 27. Qb4 {[%clk 0:00:52]} 1-0


[Site "https://www.chess.com"]

[Event "Titled Tuesday Blitz May 16 Early 2023"]
[White "Gatterer, Florian"]
[Black "ritanovikova"]
[WhiteFideId "811688"]
[WhiteElo "2221"]
[BlackElo "2122"]
[Result "1-0"]
[Round "05"]
[TimeControl "180+2"]
[Date "2023.05.16"]
[WhiteClock "0:00:09"]
[BlackClock "0:00:19"]

1. d4 {[%clk 0:02:56]}  e5 {[%clk 0:02:58]} 2. dxe5 {[%clk 0:02:52]}  Nc6 {[%clk 0:02:58]} 3. Nf3 {[%clk 0:02:52]}  Qe7 {[%clk 0:02:58]} 4. Nc3 {[%clk 0:02:49]}  Nxe5 {[%clk 0:02:58]} 5. Nxe5 {[%clk 0:02:48]}  Qxe5 {[%clk 0:02:59]} 6. g3 {[%clk 0:02:48]}  Nf6 {[%clk 0:02:58]} 7. Bg2 {[%clk 0:02:48]}  d6 {[%clk 0:02:46]} 8. Bf4 {[%clk 0:02:45]}  Qa5 {[%clk 0:02:44]} 9. a3 {[%clk 0:02:43]}  Be7 {[%clk 0:02:41]} 10. O-O {[%clk 0:02:40]}  O-O {[%clk 0:02:40]} 11. b4 {[%clk 0:02:41]}  Qh5 {[%clk 0:02:40]} 12. Nd5 {[%clk 0:02:31]}  Nxd5 {[%clk 0:02:38]} 13. Qxd5 {[%clk 0:02:31]}  Qxd5 {[%clk 0:02:32]} 14. Bxd5 {[%clk 0:02:32]}  c6 {[%clk 0:02:32]} 15. Bf3 {[%clk 0:02:27]}  a6 {[%clk 0:02:29]} 16. c4 {[%clk 0:02:22]}  Be6 {[%clk 0:02:27]} 17. Rac1 {[%clk 0:02:18]}  Rfd8 {[%clk 0:02:20]} 18. Rfd1 {[%clk 0:02:18]}  g5 {[%clk 0:02:12]} 19. Be3 {[%clk 0:02:11]}  Bf6 {[%clk 0:02:08]} 20. Bd4 {[%clk 0:01:59]}  Bxd4 {[%clk 0:01:47]} 21. Rxd4 {[%clk 0:01:57]}  Rd7 {[%clk 0:01:48]} 22. h4 {[%clk 0:01:56]}  h6 {[%clk 0:01:47]} 23. Rcd1 {[%clk 0:01:44]}  Rad8 {[%clk 0:01:41]} 24. Kg2 {[%clk 0:01:32]}  Kg7 {[%clk 0:01:38]} 25. hxg5 {[%clk 0:01:31]}  hxg5 {[%clk 0:01:39]} 26. e4 {[%clk 0:01:24]}  f6 {[%clk 0:01:37]} 27. Be2 {[%clk 0:01:24]}  d5 {[%clk 0:01:09]} 28. cxd5 {[%clk 0:00:41]}  cxd5 {[%clk 0:01:10]} 29. exd5 {[%clk 0:00:37]}  Rxd5 {[%clk 0:01:03]} 30. Rxd5 {[%clk 0:00:32]}  Rxd5 {[%clk 0:01:03]} 31. Rxd5 {[%clk 0:00:31]}  Bxd5+ {[%clk 0:01:04]} 32. Bf3 {[%clk 0:00:31]}  Bxf3+ {[%clk 0:00:57]} 33. Kxf3 {[%clk 0:00:32]}  Kf7 {[%clk 0:00:45]} 34. Ke4 {[%clk 0:00:32]}  Ke6 {[%clk 0:00:45]} 35. g4 {[%clk 0:00:32]}  b6 {[%clk 0:00:36]} 36. Kd4 {[%clk 0:00:31]}  Kd6 {[%clk 0:00:35]} 37. a4 {[%clk 0:00:27]}  a5 {[%clk 0:00:28]} 38. bxa5 {[%clk 0:00:23]}  bxa5 {[%clk 0:00:29]} 39. Kc4 {[%clk 0:00:14]}  Kc6 {[%clk 0:00:28]} 40. f3 {[%clk 0:00:14]}  Kd6 {[%clk 0:00:18]} 41. Kb5 {[%clk 0:00:14]}  Ke5 {[%clk 0:00:18]} 42. Kxa5 {[%clk 0:00:13]}  Kf4 {[%clk 0:00:19]} 43. Kb5 {[%clk 0:00:13]}  Kxf3 {[%clk 0:00:20]} 44. a5 {[%clk 0:00:13]}  Kxg4 {[%clk 0:00:20]} 45. a6 {[%clk 0:00:13]}  f5 {[%clk 0:00:21]} 46. a7 {[%clk 0:00:13]}  f4 {[%clk 0:00:22]} 47. a8=Q {[%clk 0:00:14]}  f3 {[%clk 0:00:22]} 48. Kc4 {[%clk 0:00:12]}  f2 {[%clk 0:00:18]} 49. Qg2+ {[%clk 0:00:11]}  Kh4 {[%clk 0:00:16]} 50. Qxf2+ {[%clk 0:00:10]}  Kh3 {[%clk 0:00:16]} 51. Qg1 {[%clk 0:00:10]}  g4 {[%clk 0:00:17]} 52. Kd3 {[%clk 0:00:10]}  g3 {[%clk 0:00:17]} 53. Ke2 {[%clk 0:00:09]}  g2 {[%clk 0:00:18]} 54. Kf2 {[%clk 0:00:08]}  Kh4 {[%clk 0:00:19]} 55. Qxg2 {[%clk 0:00:09]} 1-0


[Site "https://www.chess.com"]

[Event "Titled Tuesday Blitz May 16 Early 2023"]
[White "Gutkin, Ilya"]
[Black "Necula, Iulian"]
[WhiteFideId "16203470"]
[BlackFideId "1232380"]
[WhiteElo "2265"]
[BlackElo "1790"]
[Result "1-0"]
[Round "05"]
[TimeControl "180+2"]
[Date "2023.05.16"]
[WhiteClock "0:01:42"]
[BlackClock "0:00:45"]

1. e4 {[%clk 0:03:00]}  d6 {[%clk 0:03:00]} 2. d4 {[%clk 0:03:00]}  Nf6 {[%clk 0:03:01]} 3. f3 {[%clk 0:03:00]}  Nbd7 {[%clk 0:03:01]} 4. Nc3 {[%clk 0:03:00]}  e5 {[%clk 0:03:00]} 5. dxe5 {[%clk 0:02:56]}  Nxe5 {[%clk 0:02:58]} 6. Bg5 {[%clk 0:02:55]}  Be7 {[%clk 0:02:56]} 7. Qd2 {[%clk 0:02:55]}  h6 {[%clk 0:02:55]} 8. Be3 {[%clk 0:02:49]}  c6 {[%clk 0:02:49]} 9. O-O-O {[%clk 0:02:49]}  b5 {[%clk 0:02:42]} 10. Kb1 {[%clk 0:02:47]}  Be6 {[%clk 0:02:32]} 11. Nh3 {[%clk 0:02:27]}  Qc7 {[%clk 0:02:24]} 12. Nf4 {[%clk 0:02:26]}  Bc4 {[%clk 0:02:16]} 13. h4 {[%clk 0:02:16]}  Bxf1 {[%clk 0:02:14]} 14. Rhxf1 {[%clk 0:02:14]}  Nc4 {[%clk 0:02:14]} 15. Qe2 {[%clk 0:02:14]}  Nxe3 {[%clk 0:02:12]} 16. Qxe3 {[%clk 0:02:15]}  b4 {[%clk 0:02:06]} 17. Nce2 {[%clk 0:02:15]}  O-O {[%clk 0:01:47]} 18. Nd4 {[%clk 0:02:15]}  Rfe8 {[%clk 0:01:38]} 19. g4 {[%clk 0:02:13]}  Bf8 {[%clk 0:01:36]} 20. g5 {[%clk 0:02:12]}  Nd5 {[%clk 0:01:35]} 21. Nxd5 {[%clk 0:02:09]}  cxd5 {[%clk 0:01:35]} 22. gxh6 {[%clk 0:02:08]}  dxe4 {[%clk 0:01:35]} 23. fxe4 {[%clk 0:02:07]}  g6 {[%clk 0:01:33]} 24. h5 {[%clk 0:02:07]}  d5 {[%clk 0:01:30]} 25. hxg6 {[%clk 0:02:07]}  Rxe4 {[%clk 0:01:29]} 26. gxf7+ {[%clk 0:02:00]}  Kh7 {[%clk 0:01:19]} 27. Qg5 {[%clk 0:01:59]}  Qe5 {[%clk 0:01:09]} 28. Nf5 {[%clk 0:01:43]}  Qe6 {[%clk 0:00:45]} 29. Qg8# {[%clk 0:01:42]} 1-0


[Site "https://www.chess.com"]

[Event "Titled Tuesday Blitz May 16 Early 2023"]
[White "Yonal, Timur"]
[Black "Cramling Bellon, Anna"]
[WhiteFideId "44115725"]
[BlackFideId "32009232"]
[WhiteElo "1966"]
[BlackElo "1976"]
[Result "1-0"]
[Round "05"]
[TimeControl "180+2"]
[Date "2023.05.16"]
[WhiteClock "0:01:17"]
[BlackClock "0:00:00"]

1. e4 {[%clk 0:03:00]}  c5 {[%clk 0:02:33]} 2. Nf3 {[%clk 0:03:00]}  Nc6 {[%clk 0:02:25]} 3. Bb5 {[%clk 0:03:00]}  Nd4 {[%clk 0:02:23]} 4. Nxd4 {[%clk 0:02:59]}  cxd4 {[%clk 0:02:23]} 5. O-O {[%clk 0:03:00]}  Qb6 {[%clk 0:02:22]} 6. Bc4 {[%clk 0:02:59]}  e6 {[%clk 0:02:16]} 7. d3 {[%clk 0:02:57]}  d6 {[%clk 0:01:42]} 8. f4 {[%clk 0:02:53]}  Ne7 {[%clk 0:01:17]} 9. a4 {[%clk 0:02:38]}  Nc6 {[%clk 0:01:10]} 10. Nd2 {[%clk 0:02:33]}  Be7 {[%clk 0:01:07]} 11. Nf3 {[%clk 0:02:32]}  O-O {[%clk 0:01:04]} 12. Qe2 {[%clk 0:02:17]}  e5 {[%clk 0:00:56]} 13. f5 {[%clk 0:02:16]}  Nb4 {[%clk 0:00:32]} 14. Bg5 {[%clk 0:02:08]}  Bxg5 {[%clk 0:00:23]} 15. Nxg5 {[%clk 0:02:09]}  d5 {[%clk 0:00:22]} 16. exd5 {[%clk 0:01:55]}  Qh6 {[%clk 0:00:17]} 17. Qg4 {[%clk 0:01:48]}  Nxc2 {[%clk 0:00:12]} 18. f6 {[%clk 0:01:38]}  Ne3 {[%clk 0:00:10]} 19. Qg3 {[%clk 0:01:38]}  g6 {[%clk 0:00:08]} 20. d6 {[%clk 0:01:26]}  Nxc4 {[%clk 0:00:06]} 21. dxc4 {[%clk 0:01:24]}  Kh8 {[%clk 0:00:06]} 22. c5 {[%clk 0:01:23]}  Be6 {[%clk 0:00:04]} 23. Qxe5 {[%clk 0:01:23]}  Rae8 {[%clk 0:00:02]} 24. Rfe1 {[%clk 0:01:17]}  Bf5 {[%clk 0:00:02]} 25. Qxe8 {[%clk 0:01:16]}  Rxe8 {[%clk 0:00:00]} 26. Rxe8+ {[%clk 0:01:17]} 1-0


[Site "https://www.chess.com"]